bitfinex/quotes_ETHUSD_20250602
["timestamp","ask_amount","ask_price","bid_price","bid_amount"]
[1748870460987,4.00737412,2495.4,2495.0,5.174]
[1748870461203,4.00755447,2495.3,2495.0,5.174]
[1748870461406,8.83138485,2495.2,2495.0,5.174]
[1748870461592,4.82366106,2495.2,2495.1,4.105]
[1748870462201,4.00754569,2495.3,2495.1,4.105]
[1748870462916,4.00769477,2495.2,2495.1,4.105]
[1748870463213,4.00769477,2495.2,2494.5,0.7505]
[1748870463214,6.88853995,2495.2,2494.5,0.7505]
[1748870463415,4.82366106,2494.9,2494.7,0.55]
[1748870463794,8.83183862,2494.9,2494.6,12.105]
[1748870463997,8.83183862,2494.9,2494.6,4.105]
[1748870464311,4.82366106,2494.7,2494.6,4.107]
[1748870464908,8.83219061,2494.7,2494.5,5.178]
[1748870465214,4.00852955,2494.7,2494.3,0.7574]
[1748870465389,4.00862414,2494.7,2494.5,4.108]
[1748870465879,4.80455101,2494.8,2494.5,4.108]
[1748870466282,4.00813041,2495.0,2494.5,4.108]
[1748870466502,14.06101804,2495.1,2494.5,4.108]
[1748870466783,4.00816973,2495.0,2494.5,4.108]
[1748870466983,4.00824367,2494.9,2494.5,4.108]
[1748870467719,11.50012199,2495.1,2494.5,4.108]
[1748870467919,4.0083051,2494.9,2494.5,4.108]
[1748870468725,4.00842674,2494.8,2494.5,4.108]
[1748870469205,15.50798649,2495.1,2494.5,5.176]
[1748870469407,4.00850318,2494.7,2494.5,5.176]
[1748870470225,4.00840249,2494.8,2494.5,5.176]
[1748870470722,11.50012199,2495.1,2494.5,5.176]
[1748870470899,15.50803598,2495.1,2494.5,9.18468611]
[1748870471299,4.00801636,2495.0,2494.5,5.176]
[1748870471499,4.00817825,2494.9,2494.5,5.176]
[1748870471727,14.06104265,2495.1,2494.5,10.57989576]
[1748870471896,4.00801935,2495.0,2494.6,0.8192]
[1748870472610,13.26492776,2495.1,2494.6,0.8192]
[1748870473012,4.00851462,2494.7,2494.5,5.176]
[1748870473322,4.00851462,2494.7,2494.5,1.07]
[1748870473323,1.32655115,2494.6,2494.5,1.07]
[1748870473494,4.00851462,2494.7,2494.5,1.07]
[1748870474425,13.26536543,2494.8,2494.5,1.07]
[1748870474601,4.00856865,2494.7,2494.5,1.07]
[1748870475031,4.00858852,2494.7,2494.5,1.07]
[1748870475323,13.26542541,2494.8,2494.5,1.07]
[1748870475923,13.26538345,2494.8,2494.5,1.07]
[1748870476230,4.00849801,2494.7,2494.5,1.07]
[1748870477227,14.67344413,2494.8,2494.5,1.07]
[1748870477433,13.26542578,2494.8,2494.5,1.07]
[1748870478391,4.00850197,2494.7,2494.5,1.07]
[1748870478811,4.0086587,2494.6,2494.5,1.07]
[1748870479894,4.00860756,2494.7,2494.5,1.07]
[1748870480205,4.0086587,2494.6,2494.5,1.07]
[1748870483128,4.00859571,2494.7,2494.5,1.07]
[1748870485333,4.82129081,2494.6,2494.5,1.07]
[1748870488120,8.82994951,2494.6,2494.5,1.07]
[1748870488839,4.82129081,2494.6,2494.5,1.07]
[1748870491563,4.82129081,2494.6,2494.3,4.8591]
[1748870491978,8.8299541,2494.6,2494.3,4.8591]
[1748870492378,4.82129081,2494.4,2494.2,1.07]
[1748870492539,4.00914084,2494.3,2494.2,1.07]
[1748870494979,8.83035573,2494.4,2494.2,1.07]
[1748870495444,4.00914084,2494.3,2494.2,1.07]
[1748870495649,4.00914084,2494.3,2494.1,0.01]
[1748870495650,4.83570157,2494.2,2494.1,0.01]
[1748870495947,4.83570157,2494.2,2493.2,12.764]
[1748870495948,4.01034559,2493.6,2493.2,12.764]
[1748870496149,4.82129081,2493.3,2493.2,12.764]
[1748870496548,4.82129081,2493.5,2493.2,12.764]
[1748870496750,4.82129081,2493.5,2493.1,0.01]
[1748870496751,4.82129081,2493.3,2493.1,0.01]
[1748870496946,4.01090967,2493.2,2493.1,0.01]
[1748870499450,0.7543,2493.2,2493.1,0.01]
[1748870499651,8.83204114,2493.3,2493.1,0.01]
[1748870500199,4.01090967,2493.2,2493.1,0.01]
[1748870501104,5.25326565,2493.2,2493.1,0.01]
[1748870501592,6.05436565,2493.2,2493.1,0.01]
[1748870501796,6.05436565,2493.2,2492.4,8.0]
[1748870501797,0.8011,2493.0,2492.1,0.01]
[1748870501993,4.82129081,2492.2,2492.1,0.01]
[1748870502296,4.01251905,2492.2,2492.1,0.01]
[1748870502501,8.83369251,2492.3,2492.1,0.01]
[1748870502707,4.82129081,2492.3,2492.1,0.01]
[1748870502911,4.01251905,2492.2,2492.1,0.01]
[1748870503393,13.28889075,2492.3,2492.1,0.01]
[1748870503895,4.01251905,2492.2,2492.1,0.01]
[1748870504391,9.27645387,2492.3,2492.1,0.01]
[1748870504690,4.01251905,2492.2,2492.1,0.01]
[1748870504892,13.28887404,2492.3,2492.1,0.01]
[1748870505096,4.0123279,2492.4,2492.1,0.01]
[1748870505296,10.10145387,2492.7,2492.1,0.01]
[1748870505496,4.01228921,2492.4,2492.1,0.01]
[1748870505660,4.01235806,2492.3,2492.1,0.01]
[1748870506690,13.28871279,2492.4,2492.1,0.01]
[1748870507092,4.01251905,2492.2,2492.1,0.01]
[1748870508217,4.01242139,2492.3,2492.1,0.01]
[1748870508420,5.74264173,2492.2,2492.1,0.01]
[1748870510495,6.55794173,2492.2,2492.1,0.01]
[1748870512099,0.7931,2491.6,2491.1,0.01]
[1748870512299,4.01404007,2491.3,2491.1,0.01]
[1748870512503,9.27645387,2491.5,2491.1,0.01]
[1748870512812,13.2901895,2491.5,2491.1,0.01]
[1748870513188,14.69851075,2491.5,2491.1,0.01]
[1748870513383,4.01400654,2491.3,2491.1,0.01]
[1748870513822,1.40832895,2491.5,2491.1,0.01]
[1748870514028,4.01372133,2491.5,2491.1,0.01]
[1748870514332,4.01396968,2491.3,2491.1,0.01]
[1748870514491,4.41634089,2491.6,2491.1,4.57427581]
[1748870514691,4.41634089,2491.6,2491.1,0.56]
[1748870514925,4.41634089,2491.6,2491.1,4.57426879]
[1748870515129,4.41634089,2491.6,2491.1,0.56]
[1748870515317,4.01394113,2491.4,2491.1,0.01]
[1748870515505,4.01396912,2491.3,2491.1,0.01]
[1748870515708,2.25988107,2491.6,2491.1,0.01]
[1748870515909,4.01398258,2491.3,2491.1,0.01]
[1748870516226,4.01390502,2491.4,2491.1,0.01]
[1748870516393,4.01397376,2491.3,2491.1,0.01]
[1748870517132,14.35916135,2491.4,2491.1,0.01]
[1748870518029,14.35923936,2491.4,2491.1,0.01]
[1748870518216,4.01397718,2491.3,2491.1,0.01]
[1748870518940,14.35921766,2491.4,2491.1,0.01]
[1748870519311,4.01400562,2491.3,2491.1,0.01]
[1748870519508,14.35923888,2491.4,2491.1,0.01]
[1748870519909,6.67506096,2491.6,2491.1,0.56]
[1748870519910,2.66151826,2491.6,2491.1,0.56]
[1748870520144,4.01348963,2491.6,2491.1,4.5742226]
[1748870520851,4.01342929,2491.7,2491.1,4.61436114]
[1748870521130,4.01342929,2491.7,2491.2,4.84480956]
[1748870521437,4.01350894,2491.6,2491.2,0.8307]
[1748870521634,4.4140174,2491.7,2491.2,0.8307]
[1748870522137,4.4140174,2491.7,2491.2,4.84481162]
[1748870522299,4.4140174,2491.7,2491.2,0.8307]
[1748870522500,4.01349161,2491.6,2491.2,0.8307]
[1748870523043,4.01412973,2491.2,2491.1,0.01]
[1748870523202,13.2905836,2491.2,2491.1,0.01]
[1748870523536,4.01477436,2490.8,2490.7,1.07]
[1748870523698,10.07939614,2490.8,2490.2,0.7996]
[1748870523904,9.27645387,2490.3,2490.2,0.7996]
[1748870524148,9.27645387,2490.3,2489.8,4.01628998]
[1748870524149,9.27645387,2490.3,2490.0,0.824065]
[1748870524949,13.29211452,2490.3,2490.0,0.824065]
[1748870525325,4.83884057,2490.2,2490.0,0.824065]
[1748870525903,10.14157636,2490.2,2490.0,0.012365]
[1748870526110,6.12583466,2490.2,2490.0,0.012365]
[1748870526449,1.07,2491.2,2490.0,0.012365]
[1748870526450,4.81782542,2490.8,2490.0,0.012365]
[1748870526756,4.83884057,2490.6,2490.2,0.777]
[1748870526923,4.83884057,2490.4,2490.2,0.777]
[1748870527121,4.83884057,2490.4,2490.2,4.79270509]
[1748870527444,9.28816696,2490.5,2490.2,4.79266968]
[1748870528023,9.28816696,2490.5,2490.2,0.777]
[1748870528426,9.28816696,2490.5,2490.2,4.7927128]
[1748870528639,9.28816696,2490.5,2490.2,0.777]
[1748870528838,9.28816696,2490.5,2490.2,4.79272678]
[1748870529058,9.28816696,2490.5,2490.2,1.80736351]
[1748870529261,9.28816696,2490.5,2490.2,5.82301872]
[1748870529438,9.28816696,2490.5,2490.2,5.78286636]
[1748870529639,9.28816696,2490.5,2490.2,4.79265521]
[1748870530068,9.28816696,2490.5,2490.3,4.01555825]
[1748870530364,13.30301044,2490.8,2490.2,4.79267689]
[1748870530568,13.30301044,2490.8,2490.2,4.83282895]
[1748870531024,4.01496115,2490.7,2490.2,0.777]
[1748870531223,9.28816696,2490.5,2490.2,0.777]
[1748870531463,15.40510654,2490.5,2490.1,1.081]
[1748870531672,9.28816696,2490.2,2490.1,1.081]
[1748870532169,13.30390866,2490.2,2490.1,1.081]
[1748870532322,13.30390866,2490.2,2490.1,0.01]
[1748870533538,9.28816696,2490.2,2490.1,0.01]
[1748870534546,13.30390866,2490.2,2490.1,0.01]
[1748870534756,9.28816696,2490.2,2490.1,0.01]
[1748870534932,4.141,2490.4,2490.1,0.01]
[1748870535270,13.30350351,2490.5,2490.1,0.7832]
[1748870535631,8.15687934,2490.8,2490.3,4.01556255]
[1748870535831,9.28816696,2490.6,2490.1,0.7832]
[1748870536131,9.28816696,2490.6,2490.1,4.79907749]
[1748870536336,9.28816696,2490.6,2490.2,4.01566398]
[1748870536536,15.84873996,2490.8,2490.2,0.04015204]
[1748870536755,4.01493887,2490.7,2490.2,4.0558304]
[1748870538131,13.70278136,2490.8,2490.2,0.04015204]
[1748870538332,13.70278136,2490.8,2490.2,4.05581446]
[1748870538629,4.01470847,2490.9,2490.3,4.56548625]
[1748870538843,17.44279452,2490.9,2490.4,0.8205]
[1748870539042,4.01484893,2490.8,2490.4,0.8205]
[1748870540075,4.0150147,2490.7,2490.4,0.8205]
[1748870541174,4.01533133,2490.5,2490.2,0.7662]
[1748870541358,4.01540308,2490.5,2490.2,0.7662]
[1748870541669,9.28816696,2490.3,2490.1,1.097]
[1748870541877,9.28816696,2490.3,2490.1,0.01]
[1748870542078,4.0157417,2490.2,2490.1,0.01]
[1748870543479,14.23263384,2490.3,2490.1,0.01]
[1748870543676,4.0157417,2490.2,2490.1,0.01]
[1748870544946,0.9288167,2490.3,2490.1,0.01]
[1748870545275,13.30365878,2490.4,2490.1,0.01]
[1748870545576,8.1562666,2490.5,2490.1,0.05015844]
[1748870545577,4.01529468,2490.5,2490.1,0.05015844]
[1748870545865,13.30338724,2490.6,2490.1,4.06603992]
[1748870546030,13.30338724,2490.6,2490.1,0.05015844]
[1748870546236,4.01526179,2490.5,2490.1,0.01]
[1748870546557,9.28816696,2490.6,2490.3,0.8241]
[1748870546759,0.40979459,2490.8,2490.3,4.87975833]
[1748870546962,4.01500048,2490.7,2490.3,0.8241]
[1748870547338,4.01484453,2490.8,2490.3,0.8241]
[1748870547663,4.01508805,2490.7,2490.3,0.8241]
[1748870548176,4.0154192,2490.5,2490.2,4.142]
[1748870548347,5.74719353,2490.5,2490.1,0.8155]
[1748870549394,13.30385714,2490.3,2490.1,0.8155]
[1748870550052,9.28816696,2490.3,2490.1,0.8155]
[1748870550254,13.30383395,2490.3,2490.1,0.8155]
[1748870550576,9.28816696,2490.3,2490.1,0.8155]
[1748870551084,4.01562432,2490.3,2490.1,0.8155]
[1748870552411,9.28816696,2490.4,2490.1,0.8155]
[1748870552555,4.0157417,2490.2,2490.1,0.01]
[1748870558670,4.7889417,2490.2,2490.1,0.01]
[1748870559500,8.9269417,2490.2,2490.1,0.01]
[1748870559860,8.9269417,2490.2,2489.2,0.7663]
[1748870559861,4.01719358,2489.3,2489.2,0.7663]
[1748870560160,13.30529464,2489.4,2489.2,0.7663]
[1748870561109,13.43016696,2489.9,2489.3,0.55]
[1748870561259,4.01657042,2489.7,2489.4,0.04016603]
[1748870561761,0.8142,2490.0,2489.2,0.7663]
[1748870561762,9.28816696,2489.6,2489.2,0.7663]
[1748870562010,9.28816696,2489.6,2489.3,4.05721326]
[1748870562181,9.28816696,2489.6,2489.3,0.04016958]
[1748870563008,9.28816696,2489.6,2489.4,0.8184]
[1748870563314,13.30491055,2489.6,2489.4,0.8184]
[1748870563704,9.28816696,2489.6,2489.4,0.8184]
[1748870563900,9.28816696,2489.5,2489.2,0.7532]
[1748870564916,13.30504455,2489.5,2489.2,0.7532]
[1748870565122,4.01705198,2489.4,2489.2,0.7532]
[1748870565333,13.30505394,2489.5,2489.2,0.7532]
[1748870565619,9.28816696,2489.5,2489.2,0.7532]
[1748870565804,13.30505683,2489.5,2489.2,0.7532]
[1748870566011,4.01705407,2489.4,2489.2,0.7532]
[1748870566215,13.30513055,2489.5,2489.2,0.7532]
[1748870566422,13.30510424,2489.5,2489.2,0.7532]
[1748870566600,4.01709715,2489.4,2489.2,0.7532]
[1748870566915,4.01712096,2489.4,2489.2,0.7532]
[1748870567882,4.01712096,2489.4,2489.1,0.01]
[1748870567883,4.01735497,2489.2,2489.1,0.01]
[1748870568725,9.28816696,2489.3,2489.1,0.01]
[1748870568896,9.28816696,2489.3,2489.1,0.7766]
[1748870569221,13.30538098,2489.3,2489.1,0.7766]
[1748870569627,4.01735497,2489.2,2489.1,0.7766]
[1748870570406,4.01729286,2489.3,2489.1,0.7766]
[1748870570719,13.30527044,2489.4,2489.1,0.7766]
[1748870570890,4.01735497,2489.2,2489.1,0.7766]
[1748870573489,4.01735497,2489.2,2489.1,0.01]
[1748870573691,5.74962843,2489.2,2489.1,0.01]
[1748870573929,4.01735497,2489.2,2489.1,0.01]
[1748870576151,0.40693774,2489.5,2489.1,0.01]
[1748870576304,4.01635036,2489.9,2489.1,0.01]
[1748870576305,9.28816696,2489.8,2489.2,0.04017073]
[1748870576508,4.01654096,2489.8,2489.4,0.7842]
[1748870576706,4.01614508,2490.0,2489.4,4.98836478]
[1748870576943,10.582432,2490.1,2489.4,4.98836478]
[1748870577153,4.01636287,2489.9,2489.5,0.55]
[1748870577447,4.01640749,2489.8,2489.5,0.55]
[1748870577648,4.01632372,2489.9,2489.5,0.55]
[1748870577851,4.01632372,2489.9,2489.5,1.61043049]
[1748870578150,4.01596944,2490.1,2489.7,0.55]
[1748870578352,4.016103,2490.0,2489.7,0.55]
[1748870579255,4.01626735,2489.9,2489.7,0.55]
[1748870579615,4.01612967,2490.0,2489.7,0.55]
[1748870580229,4.01624929,2489.9,2489.7,0.55]
[1748870581355,4.01638685,2489.8,2489.7,0.55]
[1748870581555,9.28816696,2490.0,2489.7,0.55]
[1748870581556,4.01631084,2489.9,2489.7,0.55]
[1748870581754,9.28816696,2490.0,2489.7,0.55]
[1748870582160,9.28816696,2490.0,2489.7,0.59015997]
[1748870582364,9.28816696,2490.0,2489.7,4.708]
[1748870582652,4.01626144,2489.9,2489.7,4.708]
[1748870582852,4.01645153,2489.8,2489.7,4.157]
[1748870583056,4.01645153,2489.8,2489.7,3.047]
[1748870583651,4.01654817,2489.7,2489.4,8.0]
[1748870583858,4.01687085,2489.5,2489.3,8.0]
[1748870584049,4.01719358,2489.3,2489.2,1.089]
[1748870584353,9.28816696,2489.4,2489.1,0.01]
[1748870584354,4.01735497,2489.2,2489.1,0.01]
[1748870584558,4.01725895,2489.3,2489.1,0.01]
[1748870584760,9.28816696,2489.5,2489.1,0.01]
[1748870584970,4.01729266,2489.3,2489.1,0.01]
[1748870586077,4.01710933,2489.4,2489.1,0.01]
[1748870586776,15.13938453,2489.5,2489.1,0.01]
[1748870586966,4.01704365,2489.4,2489.1,0.01]
[1748870588287,15.13933103,2489.5,2489.1,0.01]
[1748870588749,15.13942346,2489.5,2489.1,0.01]
[1748870588955,4.01710838,2489.4,2489.1,0.01]
[1748870589155,15.13936093,2489.5,2489.1,0.01]
[1748870589377,4.01707323,2489.4,2489.1,0.01]
[1748870590184,15.13935786,2489.5,2489.1,0.01]
[1748870590488,4.01735497,2489.2,2489.1,0.01]
[1748870590775,13.30552193,2489.2,2489.1,0.01]
[1748870591561,9.28816696,2489.2,2489.1,0.01]
[1748870592381,13.30552193,2489.2,2489.1,0.01]
[1748870592560,9.28816696,2489.2,2489.1,0.01]
[1748870592877,13.30552193,2489.2,2489.1,0.01]
[1748870593559,9.28816696,2489.2,2489.1,0.01]
[1748870594159,13.30552193,2489.2,2489.1,0.01]
[1748870594348,15.19732073,2489.2,2489.1,0.01]
[1748870594693,16.01682073,2489.2,2489.1,0.01]
[1748870595400,7.55475071,2489.2,2489.1,0.01]
[1748870595602,1.19900833,2489.5,2489.1,0.01]
[1748870595759,4.84345191,2489.3,2489.1,0.7762]
[1748870596360,5.25166024,2489.5,2489.2,4.01735497]
[1748870596545,0.8042,2489.9,2489.2,0.52354187]
[1748870596741,4.84345191,2489.7,2489.3,4.56711751]
[1748870597099,4.84345191,2489.7,2489.4,0.04016561]
[1748870597406,8.86000147,2489.7,2489.4,0.04016561]
[1748870597783,4.84345191,2489.7,2489.4,0.04016561]
[1748870598097,4.84345191,2489.5,2489.2,0.55]
[1748870598319,4.01664121,2489.7,2489.3,4.156]
[1748870598483,4.84345191,2489.5,2489.3,4.156]
[1748870602609,4.84345191,2489.5,2489.1,0.7762]
[1748870602805,4.84345191,2489.3,2489.1,4.9282]
[1748870602979,4.84345191,2489.3,2489.1,0.7762]
[1748870603570,8.86066065,2489.3,2489.1,0.01]
[1748870603773,4.84345191,2489.3,2489.1,0.01]
[1748870603973,4.84345191,2489.5,2489.2,0.55]
[1748870604178,4.84345191,2489.5,2489.3,0.7988]
[1748870604731,4.84345191,2489.7,2489.3,4.81591153]
[1748870604875,4.84345191,2489.7,2489.3,8.96991153]
[1748870605437,0.7536,2490.1,2489.4,0.59016572]
[1748870605712,4.01622984,2489.9,2489.5,4.01673817]
[1748870606007,4.84345191,2489.8,2489.4,4.56693901]
[1748870606218,8.8599228,2489.8,2489.4,0.55]
[1748870606803,4.84345191,2489.6,2489.5,4.704]
[1748870607176,4.01644796,2489.8,2489.5,4.704]
[1748870607383,13.31063767,2489.9,2489.3,0.7988]
[1748870607590,5.34751207,2489.8,2489.4,4.155]
[1748870609315,1.33105792,2489.8,2489.4,8.17201235]
[1748870609523,4.01638751,2489.8,2489.4,8.17201235]
[1748870609819,4.01638751,2489.8,2489.4,4.155]
[1748870611105,4.01638751,2489.8,2489.4,4.19516639]
[1748870611318,4.01626455,2489.9,2489.4,4.155]
[1748870611511,4.01639203,2489.8,2489.4,4.155]
[1748870612206,4.01658293,2489.7,2489.4,4.155]
[1748870613523,4.0165185,2489.8,2489.4,4.155]
[1748870615226,4.01657043,2489.7,2489.4,4.155]
[1748870615824,4.01648718,2489.8,2489.4,0.55]
[1748870615991,4.016651,2489.7,2489.4,0.55]
[1748870616393,4.0163924,2489.8,2489.5,0.7808]
[1748870617323,4.01634284,2489.9,2489.5,0.7808]
[1748870617324,4.01655414,2489.7,2489.5,0.7808]
[1748870618095,4.01648755,2489.8,2489.5,0.7808]
[1748870618294,4.01627225,2489.9,2489.5,0.7808]
[1748870618528,4.01655571,2489.7,2489.3,0.55]
[1748870618832,4.01655571,2489.7,2489.4,4.147]
[1748870620711,4.81077781,2489.8,2489.4,4.147]
[1748870621027,9.2943398,2490.0,2489.4,8.16393528]
[1748870621028,4.84601225,2490.0,2489.4,8.16393528]
[1748870621251,4.0163419,2489.9,2489.4,9.22515784]
[1748870621398,4.01651144,2489.8,2489.4,1.06117353]
[1748870621598,10.1242398,2490.0,2489.3,8.71312121]
[1748870621906,4.01629609,2489.9,2489.3,8.71312121]
[1748870622328,4.01654915,2489.7,2489.3,4.696]
[1748870623763,4.01647977,2489.8,2489.3,4.696]
[1748870623965,4.01647977,2489.8,2489.4,4.0169997]
[1748870624265,4.01641162,2489.8,2489.3,9.95599746]
[1748870624562,4.01641162,2489.8,2489.4,0.3849668]
[1748870624743,4.01641162,2489.8,2489.3,5.80999746]
[1748870624949,4.01653353,2489.8,2489.4,0.38496678]
[1748870625263,4.01653353,2489.8,2489.3,9.95399746]
[1748870625467,4.01653353,2489.8,2489.4,0.38514292]
[1748870625763,4.01653353,2489.8,2489.3,8.71115423]
[1748870625962,4.01653353,2489.8,2489.4,0.38514619]
[1748870626184,4.01633562,2489.9,2489.3,6.3383761]
[1748870626340,4.01660942,2489.7,2489.4,0.38519642]
[1748870626525,4.01660942,2489.7,2489.3,4.694]
[1748870626729,4.01660942,2489.7,2489.4,0.38520453]
[1748870626960,4.01660942,2489.7,2489.2,0.8038]
[1748870626961,9.2943398,2489.7,2489.2,0.8038]
[1748870627127,4.017023,2489.5,2489.3,0.38521483]
[1748870627332,4.017023,2489.5,2489.2,8.8038]
[1748870627531,4.017023,2489.5,2489.3,0.38522419]
[1748870627532,13.31137311,2489.4,2489.3,0.38522419]
[1748870627769,4.01722953,2489.3,2489.1,8.01]
[1748870627971,4.01722953,2489.3,2489.2,0.38524444]
[1748870628451,13.31146571,2489.4,2489.2,0.38524444]
[1748870628801,4.81195497,2489.2,2489.1,0.01]
[1748870629277,8.86053153,2489.2,2489.1,0.01]
[1748870631640,9.68183153,2489.2,2489.1,0.01]
[1748870632533,4.84317656,2489.3,2489.1,0.01]
[1748870633471,8.86037883,2489.3,2489.1,0.01]
[1748870633674,4.01735497,2489.2,2489.1,0.01]
[1748870633839,4.84317656,2489.3,2489.1,0.01]
[1748870634368,8.86037753,2489.3,2489.1,0.01]
[1748870635474,4.84317656,2489.3,2489.1,0.01]
[1748870635674,8.86037777,2489.3,2489.1,0.01]
[1748870636576,4.01735497,2489.2,2489.1,0.01]
[1748870637176,8.86044971,2489.3,2489.1,0.01]
[1748870637673,6.12510822,2489.2,2489.1,0.01]
[1748870638955,1.28775325,2489.2,2489.1,0.01]
[1748870639155,8.86040504,2489.3,2489.1,0.01]
[1748870640578,4.84317656,2489.3,2489.1,0.01]
[1748870640763,4.01735497,2489.2,2489.1,0.01]
[1748870642308,4.84317656,2489.2,2489.1,0.01]
[1748870642478,4.84317656,2489.4,2489.1,0.01]
[1748870643218,8.8602107,2489.4,2489.1,0.01]
[1748870644080,4.84317656,2489.3,2489.1,0.01]
[1748870644712,5.25028498,2489.5,2489.1,4.02750041]
[1748870645094,1.73983398,2489.7,2489.1,4.02750041]
[1748870645095,5.77261054,2489.7,2489.2,4.05752581]
[1748870645296,4.84317656,2489.7,2489.3,4.56712302]
[1748870645514,8.8598278,2489.7,2489.3,0.55]
[1748870646083,4.84317656,2489.7,2489.3,4.56719294]
[1748870646299,8.85972882,2489.7,2489.3,1.3494]
[1748870646815,4.84317656,2489.7,2489.3,5.36658919]
[1748870647109,8.85980097,2489.7,2489.3,1.3494]
[1748870647290,8.85980097,2489.7,2489.3,0.7994]
[1748870647291,4.84317656,2489.5,2489.3,0.7994]
[1748870648612,8.86016751,2489.5,2489.2,5.233]
[1748870648812,4.84317656,2489.5,2489.2,5.233]
[1748870649415,8.8600626,2489.5,2489.1,4.82598452]
[1748870649615,8.86006269,2489.5,2489.1,0.8085]
[1748870650374,8.86042527,2489.3,2489.1,0.8085]
[1748870650577,4.84317656,2489.3,2489.1,0.01]
[1748870650811,4.01735497,2489.2,2489.1,0.01]
[1748870651179,4.84025497,2489.2,2489.1,0.01]
[1748870651532,6.21031919,2489.2,2489.1,0.01]
[1748870651684,10.36231919,2489.2,2489.1,0.01]
[1748870652699,4.84317656,2488.7,2488.5,0.4601]
[1748870654549,4.84317656,2488.7,2488.4,0.8324]
[1748870654835,4.84317656,2488.9,2488.5,4.01847291]
[1748870655124,2.45811604,2489.5,2488.7,0.7855]
[1748870655354,6.01360744,2489.5,2488.8,0.59017501]
[1748870655634,4.84317656,2489.3,2488.9,4.81336648]
[1748870656348,4.84317656,2489.3,2489.0,4.05776138]
[1748870656574,8.99817656,2489.5,2489.1,4.01741196]
[1748870656729,4.01645215,2489.8,2489.3,0.7637]
[1748870657062,4.0165808,2489.7,2489.3,0.7637]
[1748870657268,8.17148056,2489.8,2489.3,4.7808925]
[1748870657461,4.84317656,2489.7,2489.3,4.7808925]
[1748870657837,4.84317656,2489.7,2489.4,4.0169508]
[1748870658042,13.82065983,2489.9,2489.4,4.56692706]
[1748870658455,9.80427656,2489.9,2489.5,4.01686252]
[1748870658658,13.01342248,2489.9,2489.4,4.56693631]
[1748870658882,4.84317656,2489.7,2489.4,0.55]
[1748870659585,4.84317656,2489.7,2489.4,4.56702105]
[1748870659875,4.84317656,2489.9,2489.5,4.01686002]
[1748870660085,4.84317656,2489.9,2489.5,4.01677551]
[1748870660228,8.85940943,2489.9,2489.5,4.01677551]
[1748870660561,8.85940943,2489.9,2489.4,5.23812757]
[1748870660965,8.85940943,2489.9,2489.5,4.01685598]
[1748870661571,4.84317656,2489.9,2489.5,4.01685598]
[1748870663173,4.84317656,2489.9,2489.6,4.01670945]
[1748870663461,4.84317656,2489.9,2489.5,4.05696399]
[1748870663837,4.84317656,2489.9,2489.6,0.55]
[1748870664939,4.84317656,2489.7,2489.3,4.78082878]
[1748870665153,8.85984066,2489.7,2489.3,0.7637]
[1748870665355,4.84317656,2489.5,2489.1,4.01748754]
[1748870665545,4.84317656,2489.3,2489.2,0.38416806]
[1748870665768,4.84317656,2489.3,2489.2,12.01735497]
[1748870665973,4.84317656,2489.3,2489.2,8.0]
[1748870666275,4.84317656,2489.3,2489.2,12.01735497]
[1748870666482,4.84317656,2489.3,2489.2,8.0]
[1748870666781,4.84317656,2489.3,2489.2,12.01735497]
[1748870667356,5.64297656,2489.6,2489.4,4.0169679]
[1748870667562,10.35427422,2489.6,2488.3,12.6957734]
[1748870667762,10.35427422,2489.6,2489.1,4.01750215]
[1748870667763,4.84317656,2489.3,2489.1,4.01750215]
[1748870667968,4.84317656,2489.3,2489.0,4.01760071]
[1748870668859,4.84317656,2489.3,2489.1,4.01750508]
[1748870669060,4.84317656,2489.3,2489.0,4.01760686]
[1748870669262,4.84317656,2489.3,2488.9,4.56778712]
[1748870669652,4.84317656,2489.3,2489.0,4.01766893]
[1748870669891,4.84317656,2489.3,2488.9,4.01773414]
[1748870670107,4.84317656,2489.1,2488.8,4.76829067]
[1748870670402,4.84317656,2489.1,2488.8,0.55]
[1748870670551,4.84317656,2489.1,2488.7,12.01808639]
[1748870670750,4.84317656,2489.1,2488.7,12.01809622]
[1748870671184,4.84317656,2489.1,2488.8,8.0]
[1748870671477,4.84317656,2488.9,2488.5,8.16438085]
[1748870671795,4.84317656,2488.9,2488.6,12.40261992]
[1748870672001,4.84317656,2489.1,2488.8,4.01800064]
[1748870672198,4.84317656,2489.1,2488.9,4.0177633]
[1748870672603,4.84317656,2489.3,2488.9,4.0177633]
[1748870672763,6.66068842,2489.3,2488.9,4.0177633]
[1748870673301,4.84317656,2489.1,2488.8,0.7735]
[1748870673503,4.84317656,2489.1,2488.8,4.79148056]
[1748870673872,4.84317656,2489.1,2488.8,4.8316563]
[1748870674067,4.84317656,2489.1,2488.8,4.0581563]
[1748870674291,4.84317656,2489.1,2488.8,0.04017574]
[1748870674510,8.86101576,2488.9,2488.4,4.56857776]
[1748870674706,4.84317656,2488.9,2488.4,0.55]
[1748870674872,4.84317656,2488.9,2488.5,0.55]
[1748870675090,4.84317656,2488.9,2488.5,4.56836378]
[1748870675574,4.84317656,2489.1,2488.4,0.55]
[1748870675765,4.84317656,2489.1,2488.7,0.55]
[1748870675971,4.84317656,2488.9,2488.6,0.55]
[1748870676479,4.84317656,2488.9,2488.7,4.01809724]
[1748870676800,4.84317656,2488.9,2488.6,4.56823221]
[1748870677371,4.84317656,2488.9,2488.7,4.01814896]
[1748870677997,4.84317656,2488.9,2488.6,4.56824803]
[1748870678578,4.84317656,2488.9,2488.6,4.01824803]
[1748870679199,6.48026287,2488.9,2488.5,4.01841543]
[1748870679413,6.48026287,2488.9,2488.5,4.01845725]
[1748870679615,5.59417656,2488.9,2488.6,4.01823917]
[1748870679928,5.59417656,2488.9,2488.7,4.01808512]
[1748870680432,5.59417656,2488.9,2488.6,4.01825611]
[1748870680589,5.59417656,2488.9,2488.6,4.0182116]
[1748870680789,4.84317656,2488.9,2488.7,4.01812531]
[1748870680987,5.66187656,2489.3,2488.8,0.7864]
[1748870681188,6.05503523,2489.5,2488.9,0.55]
[1748870681391,4.154,2489.4,2489.2,4.01729071]